fUST/lending_fUST_20240803
["ID","MTS","AMOUNT","RATE_DAILY","PERIOD"]
[333959702,1722649840126,-500.0,0.00013698,2]
[333959703,1722649840135,-660.06,0.00013698,2]
[333959705,1722649840145,-500.80859553,0.00013698,2]
[333959707,1722649840154,-506.54110417,0.00013698,2]
[333959709,1722649840164,-501.59894841,0.00013698,2]
[333959711,1722649840173,-504.09025349,0.00013698,2]
[333959713,1722649840183,-500.0,0.00013698,2]
[333959715,1722649840193,-502.30572852,0.00013698,2]
[333959717,1722649840202,-500.0,0.00013698,2]
[333959719,1722649840211,-500.0,0.00013698,2]
[333959721,1722649840221,-504.57109469,0.00013698,2]
[333959723,1722649840231,-502.17683024,0.00013698,2]
[333959725,1722649840240,-506.12023889,0.00013698,2]
[333959727,1722649840250,-500.0,0.00013698,2]
[333959729,1722649840260,-1368.62,0.00013698,2]
[333959731,1722649840270,-500.0,0.00013698,2]
[333959733,1722649840281,-502.05593954,0.00013698,2]
[333959734,1722649840292,-502.8675988,0.00013698,2]
[333959735,1722649840304,-501.93729899,0.00013698,2]
[333959736,1722649840314,-505.82621935,0.00013698,2]
[333959737,1722649840324,-501.04256428,0.00013698,2]
[333959738,1722649840333,-506.38376022,0.00013698,2]
[333959739,1722649840344,-503.27230899,0.00013698,2]
[333959740,1722649840354,-500.0,0.00013698,2]
[333959742,1722649840364,-502.58690542,0.00013698,2]
[333959744,1722649840373,-500.0,0.00013698,2]
[333959746,1722649840386,-190.21641263,0.00013698,2]
[333959748,1722649840396,-510.71,0.00013698,2]
[333959750,1722649840408,-500.0,0.00013698,2]
[333959753,1722649840420,-5189.67,0.00013698,2]
[333959755,1722649840430,-500.0,0.00013698,2]
[333959757,1722649840439,-504.39035449,0.00013698,2]
[333959759,1722649840449,-501.74241784,0.00013698,2]
[333959761,1722649840462,-500.0,0.00013698,2]
[333959763,1722649840473,-505.12949006,0.00013698,2]
[333959765,1722649840483,-500.0,0.00013698,2]
[333959767,1722649840493,-500.0,0.00013698,2]
[333959769,1722649840503,-200.11555208,0.00013698,2]
[333959771,1722649840514,-517.45085263,0.00013698,2]
[333959774,1722649840525,-2309.87,0.00013698,2]
[333959776,1722649840536,-512.61951995,0.00013698,2]
[333959778,1722649840547,-500.0,0.00013698,2]
[333959780,1722649840560,-500.0,0.00013698,2]
[333959782,1722649840570,-500.0,0.00013698,2]
[333959784,1722649840579,-502.57469937,0.00013698,2]
[333959786,1722649840589,-500.0,0.00013698,2]
[333959788,1722649840601,-2474.51,0.00013698,2]
[333959790,1722649840611,-506.56107684,0.00013698,2]
[333959792,1722649840620,-504.23835473,0.00013698,2]
[333959795,1722649840630,-774.48,0.00013698,2]
[333959797,1722649840639,-500.0,0.00013698,2]
[333959799,1722649840649,-500.0,0.00013698,2]
[333959801,1722649840663,-505.89842754,0.00013698,2]
[333959803,1722649840674,-329.71812564,0.00013698,2]
[333959805,1722649840684,-500.0,0.00013698,2]
[333959807,1722649840695,-515.17605677,0.00013698,2]
[333959809,1722649840705,-500.0,0.00013698,2]
[333959811,1722649840715,-505.94709248,0.00013698,2]
[333959813,1722649840725,-500.0,0.00013698,2]
[333959816,1722649840735,-500.0,0.00013698,2]
[333959817,1722649840745,-500.0,0.00013698,2]
[333959820,1722649840754,-1236.58,0.00013698,2]
[333959822,1722649840764,-500.0,0.00013698,2]
[333959824,1722649840773,-500.0,0.00013698,2]
[333959826,1722649840783,-500.0,0.00013698,2]
[333959828,1722649840792,-503.55998072,0.00013698,2]
[333959830,1722649840802,-501.78,0.00013698,2]
[333959832,1722649840811,-541.04,0.00013698,2]
[333959834,1722649840821,-503.41704184,0.00013698,2]
[333959836,1722649840830,-3589.67,0.00013698,2]
[333959838,1722649840840,-504.97509504,0.00013698,2]
[333959840,1722649840851,-607.47,0.00013698,2]
[333959842,1722649840860,-500.0,0.00013698,2]
[333959844,1722649840870,-500.0,0.00013698,2]
[333959846,1722649840880,-502.76573779,0.00013698,2]
[333959848,1722649840890,-511.52925491,0.00013698,2]
[333959850,1722649840901,-505.61892652,0.00013698,2]
[333959852,1722649840911,-500.0,0.00013698,2]
[333959854,1722649840922,-811.19,0.00013698,2]
[333959856,1722649840932,-536.52,0.00013698,2]
[333959858,1722649840942,-500.0,0.00013698,2]
[333959861,1722649840951,-516.12272429,0.00013698,2]
[333959863,1722649840961,-500.0,0.00013698,2]
[333959864,1722649840970,-505.28194984,0.00013698,2]
[333959867,1722649840980,-506.85250603,0.00013698,2]
[333959868,1722649840989,-500.0,0.00013698,2]
[333959870,1722649840999,-501.03865531,0.00013698,2]
[333959873,1722649841008,-506.02924038,0.00013698,2]
[333959875,1722649841018,-500.0,0.00013698,2]
[333959877,1722649841028,-502.50417265,0.00013698,2]
[333959879,1722649841037,-500.0,0.00013698,2]
[333959881,1722649841047,-500.0,0.00013698,2]
[333959883,1722649841057,-500.0,0.00013698,2]
[333959885,1722649841066,-500.0,0.00013698,2]
[333959887,1722649841078,-505.78514418,0.00013698,2]
[333959889,1722649841090,-500.0,0.00013698,2]
[333959891,1722649841104,-503.27310266,0.00013698,2]
[333959893,1722649841115,-500.0,0.00013698,2]
[333959896,1722649841126,-500.0,0.00013698,2]
[333959898,1722649841136,-503.07616437,0.00013698,2]
[333959900,1722649841147,-500.0,0.00013698,2]
[333959902,1722649841156,-500.0,0.00013698,2]
[333959904,1722649841165,-504.80209952,0.00013698,2]
[333959906,1722649841174,-514.04,0.00013698,2]
[333959908,1722649841184,-502.80971248,0.00013698,2]
[333959910,1722649841195,-514.04,0.00013698,2]
[333959912,1722649841205,-514.04,0.00013698,2]
[333959914,1722649841214,-503.89055397,0.00013698,2]
[333959916,1722649841225,-506.63833376,0.00013698,2]
[333959918,1722649841235,-500.0,0.00013698,2]
[333959920,1722649841244,-500.0,0.00013698,2]
[333959922,1722649841253,-500.0,0.00013698,2]
[333959924,1722649841263,-500.0,0.00013698,2]
[333959926,1722649841273,-1429.58,0.00013698,2]
[333959928,1722649841283,-873.29,0.00013698,2]
[333959930,1722649841293,-503.41638704,0.00013698,2]
[333959932,1722649841302,-505.29415001,0.00013698,2]
[333959934,1722649841312,-508.27443442,0.00013698,2]
[333959936,1722649841322,-505.74744165,0.00013698,2]
[333959938,1722649841331,-500.0,0.00013698,2]
[333959940,1722649841342,-3357.86,0.00013698,2]
[333959942,1722649841357,-500.0,0.00013698,2]
[333959944,1722649841367,-645.37,0.00013698,2]
[333959946,1722649841377,-500.0,0.00013698,2]
[333959948,1722649841389,-504.83640957,0.00013698,2]
[333959950,1722649841398,-503.57026645,0.00013698,2]
[333959952,1722649841408,-505.59645295,0.00013698,2]
[333959954,1722649841419,-591.19067796,0.00013698,2]
[333959956,1722649841428,-500.0,0.00013698,2]
[333959958,1722649841437,-500.0,0.00013698,2]
[333959960,1722649841447,-500.0,0.00013698,2]
[333959962,1722649841460,-505.78951109,0.00013698,2]
[333959964,1722649841470,-500.0,0.00013698,2]
[333959966,1722649841480,-221.81993965,0.00013698,2]
[333959968,1722649841491,-507.38906622,0.00013698,2]
[333959978,1722649841584,-500.0,0.00013698,2]
[333959980,1722649841601,-500.0,0.00013698,2]
[333959982,1722649841612,-906.1,0.00013698,2]
[333959984,1722649841621,-500.0,0.00013698,2]
[333959986,1722649841631,-505.41127315,0.00013698,2]
[333959988,1722649841641,-500.0,0.00013698,2]
[333959990,1722649841651,-500.0,0.00013698,2]
[333959992,1722649841661,-500.0,0.00013698,2]
[333959994,1722649841671,-500.0,0.00013698,2]
[333959996,1722649841681,-502.28454646,0.00013698,2]
[333959998,1722649841690,-376.77146814,0.00013698,2]
[333960000,1722649841701,-783.64,0.00013698,2]
[333960002,1722649841710,-512.39417914,0.00013698,2]
[333960004,1722649841719,-500.0,0.00013698,2]
[333960006,1722649841730,-500.0,0.00013698,2]
[333960008,1722649841740,-1353.64,0.00013698,2]
[333960010,1722649841750,-1122.77,0.00013698,2]
[333960012,1722649841760,-508.49076832,0.00013698,2]
[333960014,1722649841770,-502.35685984,0.00013698,2]
[333960016,1722649841779,-420.0,0.00013797,2]
[333960018,1722649841789,-9134.82717796,0.00013962,2]
[333960020,1722649841799,-500.0,0.00013971,2]
[333960022,1722649841808,-514.04,0.00013971,2]
[333960024,1722649841818,-514.04,0.00013971,2]
[333960026,1722649841828,-462.16667547,0.00013972,2]
[333960028,1722649841838,-500.0,0.00013972,2]
[333960030,1722649841850,-161.42941201,0.00013972,2]
[333960032,1722649841859,-500.0,0.00013972,2]
[333960034,1722649841868,-500.0,0.00013972,2]
[333960036,1722649841877,-500.0,0.00013972,2]
[333960038,1722649841886,-507.29501974,0.00013972,2]
[333960040,1722649841896,-500.0,0.00013972,2]
[333960042,1722649841906,-514.4193816,0.00013972,2]
[333960044,1722649841917,-500.0,0.00013972,2]
[333960046,1722649841928,-500.0,0.00013972,2]
[333960049,1722649841940,-500.0,0.00013972,2]
[333960051,1722649841951,-500.0,0.00013972,2]
[333960053,1722649841961,-500.0,0.00013972,2]
[333960055,1722649841970,-970.18,0.00013972,2]
[333960057,1722649841980,-500.0,0.00013972,2]
[333960059,1722649841990,-500.0,0.00013972,2]
[333960061,1722649841999,-500.0,0.00013972,2]
[333960063,1722649842009,-500.0,0.00013972,2]
[333960065,1722649842019,-505.76592055,0.00013972,2]
[333960067,1722649842030,-500.0,0.00013972,2]
[333960069,1722649842042,-505.2070458,0.00013972,2]
[333960071,1722649842052,-500.0,0.00013972,2]
[333960073,1722649842062,-501.89706402,0.00013972,2]
[333960075,1722649842071,-500.0,0.00013972,2]
[333960078,1722649842084,-504.56243058,0.00013972,2]
[333960080,1722649842095,-500.0,0.00013972,2]
[333960082,1722649842105,-503.84701071,0.00013972,2]
[333960084,1722649842116,-502.99563501,0.00013972,2]
[333960086,1722649842126,-500.0,0.00013972,2]
[333960088,1722649842136,-500.0,0.00013972,2]
[333960090,1722649842146,-660.06,0.00013972,2]
[333960092,1722649842156,-509.7765928,0.00013972,2]
[333960094,1722649842166,-500.0,0.00013972,2]
[333960096,1722649842176,-500.0,0.00013972,2]
[333960098,1722649842187,-500.0,0.00013972,2]
[333960100,1722649842196,-1368.62,0.00013972,2]
[333960102,1722649842206,-500.0,0.00013972,2]
[333960104,1722649842215,-500.0,0.00013972,2]
[333960106,1722649842225,-539.84331288,0.00013972,2]
[333960108,1722649842235,-510.71,0.00013972,2]
[333960110,1722649842244,-505.59746991,0.00013972,2]
[333960112,1722649842255,-2601.01243376,0.00013972,2]
[333960115,1722649842272,-2588.65756624,0.00013972,2]
[333960117,1722649842282,-500.0,0.00013972,2]
[333960119,1722649842292,-500.0,0.00013972,2]
[333960121,1722649842302,-500.0,0.00013972,2]
[333960123,1722649842311,-500.0,0.00013972,2]
[333960125,1722649842322,-2309.87,0.00013972,2]
[333960127,1722649842331,-500.0,0.00013972,2]
[333960129,1722649842341,-500.0,0.00013972,2]
[333960132,1722649842354,-501.7048639,0.00013972,2]
[333960133,1722649842364,-500.0,0.00013972,2]
[333960135,1722649842374,-2474.51,0.00013972,2]
[333960137,1722649842386,-774.48,0.00013972,2]
[333960139,1722649842395,-500.0,0.00013972,2]
[333960141,1722649842405,-500.0,0.00013972,2]
[333960143,1722649842414,-500.0,0.00013972,2]
[333960145,1722649842425,-500.0,0.00013972,2]
[333960147,1722649842434,-500.0,0.00013972,2]
[333960150,1722649842444,-503.19484871,0.00013972,2]
[333960151,1722649842454,-500.0,0.00013972,2]
[333960153,1722649842464,-1236.58,0.00013972,2]
[333960155,1722649842474,-500.0,0.00013972,2]
[333960158,1722649842484,-500.0,0.00013972,2]
[333960159,1722649842493,-500.0,0.00013972,2]
[333960161,1722649842503,-501.78,0.00013972,2]
[333960163,1722649842513,-541.04,0.00013972,2]
[333960166,1722649842522,-3589.67,0.00013972,2]
[333960168,1722649842535,-607.47,0.00013972,2]
[333960170,1722649842549,-500.0,0.00013972,2]
[333960173,1722649842562,-500.0,0.00013972,2]
[333960175,1722649842577,-500.0,0.00013972,2]
[333960178,1722649842589,-811.19,0.00013972,2]
[333960180,1722649842604,-536.52,0.00013972,2]
[333960182,1722649842617,-500.0,0.00013972,2]
[333960185,1722649842630,-500.0,0.00013972,2]
[333960187,1722649842643,-500.0,0.00013972,2]
[333960189,1722649842658,-500.0,0.00013972,2]
[333960192,1722649842671,-500.0,0.00013972,2]
[333960194,1722649842685,-500.0,0.00013972,2]
[333960197,1722649842699,-500.0,0.00013972,2]
[333960199,1722649842712,-500.0,0.00013972,2]
[333960203,1722649842725,-500.0,0.00013972,2]
[333960208,1722649842737,-500.0,0.00013972,2]
[333960212,1722649842751,-500.0,0.00013972,2]
[333960217,1722649842765,-500.0,0.00013972,2]
[333960221,1722649842777,-506.17405387,0.00013972,2]
[333960224,1722649842788,-500.0,0.00013972,2]
[333960227,1722649842799,-503.8048491,0.00013972,2]
[333960231,1722649842813,-387.08860069,0.00013972,2]
[333960235,1722649842828,-112.91139931,0.00013972,2]
[333960239,1722649842841,-500.0,0.00013972,2]
[333960242,1722649842856,-873.29,0.00013972,2]
[333960245,1722649842869,-1429.58,0.00013972,2]
[333960248,1722649842884,-500.0,0.00013972,2]
[333960250,1722649842898,-3357.86,0.00013972,2]
[333960253,1722649842914,-500.0,0.00013972,2]
[333960255,1722649842928,-645.37,0.00013972,2]
[333960258,1722649842939,-501.57231004,0.00013972,2]
[333960260,1722649842951,-504.30375156,0.00013972,2]
[333960262,1722649842962,-500.0,0.00013972,2]
[333960265,1722649842977,-500.0,0.00013972,2]
[333960267,1722649842993,-500.0,0.00013972,2]
[333960270,1722649843009,-500.0,0.00013972,2]
[333960273,1722649843021,-452.26416181,0.00013972,2]
[333960281,1722649843048,-47.73583819,0.00013972,2]
[333960286,1722649843065,-906.1,0.00013972,2]
[333960293,1722649843081,-500.0,0.00013972,2]
[333960297,1722649843100,-500.0,0.00013972,2]
[333960301,1722649843111,-500.0,0.00013972,2]
[333960304,1722649843122,-500.0,0.00013972,2]
[333960307,1722649843133,-500.0,0.00013972,2]
[333960312,1722649843150,-783.64,0.00013972,2]
[333960315,1722649843164,-500.0,0.00013972,2]
[333960320,1722649843178,-500.0,0.00013972,2]
[333960323,1722649843190,-1353.64,0.00013972,2]
[333960326,1722649843203,-1122.77,0.00013972,2]
[333960331,1722649843216,-245.24493133,0.00014,2]
[333960334,1722649843228,-150.112233,0.00014,2]
[333960338,1722649843240,-151.16228624,0.00014103,2]
[333960341,1722649843253,-2000.0,0.00014146,2]
[333960346,1722649843268,-4567.41358898,0.00014236,2]
[333960351,1722649843281,-500.0,0.00014245,2]
[333960354,1722649843293,-500.0,0.00014245,2]
[333960358,1722649843305,-514.04,0.00014245,2]
[333960360,1722649843320,-514.04,0.00014245,2]
[333960362,1722649843332,-500.0,0.00014246,2]
[333960365,1722649843345,-500.0,0.00014246,2]
[333960367,1722649843357,-500.0,0.00014246,2]
[333960369,1722649843372,-500.0,0.00014246,2]
[333960372,1722649843386,-508.09724381,0.00014246,2]
[333960374,1722649843399,-481.6520312,0.00014246,2]
[333960404,1722649843683,-298.13007024,0.00012119,2]
[333960420,1722649843791,-102.01186558,0.00013698,2]
[333960423,1722649843852,-403.90250603,0.00013698,2]
[333960425,1722649843861,-503.37226235,0.00013698,2]
[333960428,1722649843872,-500.0,0.00013698,2]
[333960430,1722649843883,-215.05142475,0.00013972,2]
[333960432,1722649843895,-25.27470868,0.00014246,2]
[333960434,1722649843905,-500.0,0.00014246,2]
[333960436,1722649843915,-500.0,0.00014246,2]
[333960438,1722649843926,-500.0,0.00014246,2]
[333960440,1722649843937,-500.0,0.00014246,2]
[333960443,1722649843949,-970.18,0.00014246,2]
[333960445,1722649843960,-219.33146649,0.00014246,2]
[333960447,1722649843972,-500.0,0.00014246,2]
[333960449,1722649843983,-500.0,0.00014246,2]
[333960451,1722649843993,-500.0,0.00014246,2]
[333960454,1722649844005,-500.0,0.00014246,2]
[333960456,1722649844016,-500.0,0.00014246,2]
[333960458,1722649844025,-500.0,0.00014246,2]
[333960460,1722649844035,-500.0,0.00014246,2]
[333960462,1722649844045,-500.0,0.00014246,2]
[333960464,1722649844055,-500.0,0.00014246,2]
[333960466,1722649844065,-660.06,0.00014246,2]
[333960468,1722649844077,-500.0,0.00014246,2]
[333960470,1722649844088,-504.51532117,0.00014246,2]
[333960472,1722649844103,-500.0,0.00014246,2]
[333960474,1722649844112,-1368.62,0.00014246,2]
[333960476,1722649844122,-500.0,0.00014246,2]
[333960478,1722649844131,-510.71,0.00014246,2]
[333960480,1722649844141,-5189.67,0.00014246,2]
[333960482,1722649844150,-500.0,0.00014246,2]
[333960484,1722649844159,-563.74902963,0.00014246,2]
[333960486,1722649844168,-500.0,0.00014246,2]
[333960488,1722649844178,-2309.87,0.00014246,2]
[333960490,1722649844188,-500.0,0.00014246,2]
[333960492,1722649844198,-500.0,0.00014246,2]
[333960494,1722649844209,-500.0,0.00014246,2]
[333960496,1722649844219,-1537.75151861,0.00014246,2]
[333960645,1722649846374,-325.33863209,0.00013698,2]
[333964758,1722649901310,157.32907193,9.999e-05,2]
[333964759,1722649963836,16287.01982776,9.999e-05,2]
[333964760,1722649966225,5726.75238617,9.999e-05,2]
[333964761,1722649966255,8189.53747714,9.999e-05,2]
[333964762,1722649968294,1283.57699514,9.999e-05,2]
[333964763,1722649968622,3801.44247649,9.999e-05,2]
[333964764,1722649971268,1334.95303722,9.999e-05,2]
[333964766,1722650016487,240.33528951,0.0001,2]
[333964767,1722650053837,10452.43280589,9.999e-05,2]
[333964768,1722650063667,1632.14130074,0.0001,2]
[333964769,1722650066916,219.13167462,0.0001,2]
[333964770,1722650105643,406.12355092,0.0001,2]
[333964771,1722650176982,290.36567298,9.999e-05,2]
[333964772,1722650178092,181.13108143,9.999e-05,2]
[333964773,1722650191987,290.36567298,9.999e-05,2]
[333964774,1722650201223,524.14196632,9.999e-05,2]
[333964775,1722650210420,154.91479686,9.999e-05,2]
[333964776,1722650238909,377.14188753,9.999e-05,2]
[333964777,1722650269388,156.52450042,9.999e-05,2]
[333964778,1722650292349,158.24614778,9.999e-05,2]
[333964779,1722650305608,154.93879299,9.999e-05,2]
[333964780,1722650414594,155.07927116,9.999e-05,2]
[333964781,1722650416641,-155.09102175,0.00027396,120]
[333964782,1722650725000,494.19612385,9.999e-05,2]
[333965467,1722651038873,-300.0,0.0001237,2]
[333965469,1722651038884,-13407.5781909,0.00012371,2]
[333965470,1722651038894,-2084.4936069,0.00012533,2]
[333965471,1722651038904,-169.753221,0.00012986,2]
[333965472,1722651038914,-331.22107726,0.00013598,2]
[333965473,1722651038925,-420.0,0.00013607,2]
[333965474,1722651038936,-8913.151855,0.00013688,2]
[333965475,1722651038946,-500.0,0.00013697,2]
[333965476,1722651038956,-500.0,0.00013697,2]
[333965477,1722651038972,-505.05717975,0.00013698,2]
[333965478,1722651038982,-501.21944667,0.00013698,2]
[333965479,1722651038992,-510.27749732,0.00013698,2]
[333965480,1722651039005,-500.0,0.00013698,2]
[333965481,1722651039020,-500.0,0.00013698,2]
[333965482,1722651039029,-500.0,0.00013698,2]
[333965483,1722651039039,-500.0,0.00013698,2]
[333965484,1722651039049,-502.50595691,0.00013698,2]
[333965485,1722651039058,-500.0,0.00013698,2]
[333965486,1722651039072,-501.57601672,0.00013698,2]
[333965487,1722651039082,-500.0,0.00013698,2]
[333965488,1722651039093,-502.99462561,0.00013698,2]
[333965489,1722651039110,-511.38063845,0.00013698,2]
[333965490,1722651039122,-503.49873024,0.00013698,2]
[333965491,1722651039132,-502.13422759,0.00013698,2]
[333965492,1722651039143,-505.01203829,0.00013698,2]
[333965493,1722651039153,-418.38639117,0.00013698,2]
[333965494,1722651039163,-502.38791263,0.00013698,2]
[333965495,1722651039174,-502.99374445,0.00013698,2]
[333965496,1722651039186,-500.0,0.00013698,2]
[333965497,1722651039197,-502.04092398,0.00013698,2]
[333965498,1722651039208,-500.0,0.00013698,2]
[333965499,1722651039220,-503.74758123,0.00013698,2]
[333965500,1722651039231,-500.0,0.00013698,2]
[333965501,1722651039244,-503.03196668,0.00013698,2]
[333965502,1722651039256,-500.0,0.00013698,2]
[333965503,1722651039267,-500.0,0.00013698,2]
[333965504,1722651039278,-505.95776416,0.00013698,2]
[333965505,1722651039287,-500.0,0.00013698,2]
[333965506,1722651039298,-501.13622303,0.00013698,2]
[333965507,1722651039308,-500.0,0.00013698,2]
[333965508,1722651039319,-500.0,0.00013698,2]
[333965509,1722651039328,-500.0,0.00013698,2]
[333965510,1722651039338,-500.0,0.00013698,2]
[333965511,1722651039347,-500.0,0.00013698,2]
[333965512,1722651039357,-500.0,0.00013698,2]
[333965513,1722651039367,-500.0,0.00013698,2]
[333965514,1722651039377,-329.71812564,0.00013698,2]
[333965515,1722651039386,-500.0,0.00013698,2]
[333965516,1722651039397,-500.0,0.00013698,2]
[333965517,1722651039408,-512.61951995,0.00013698,2]
[333965519,1722651039419,-500.0,0.00013698,2]
[333965521,1722651039431,-500.0,0.00013698,2]
[333965523,1722651039443,-225.97639669,0.00013698,2]
[333965526,1722651039455,-511.66627346,0.00013698,2]
[333965528,1722651039465,-511.11184775,0.00013698,2]
[333965530,1722651039475,-505.89842754,0.00013698,2]
[333965532,1722651039485,-186.1965283,0.00013698,2]
[333965534,1722651039497,-500.0,0.00013698,2]
[333965536,1722651039507,-500.0,0.00013698,2]
[333965538,1722651039516,-502.95250768,0.00013698,2]
[333965540,1722651039527,-200.11555208,0.00013698,2]
[333965542,1722651039538,-330.56446103,0.00013698,2]
[333965545,1722651039550,-505.24508727,0.00013698,2]
[333965547,1722651039560,-502.15727394,0.00013698,2]
[333965549,1722651039571,-502.99563501,0.00013698,2]
[333965551,1722651039582,-503.5,0.00013698,2]
[333965553,1722651039592,-504.33158933,0.00013698,2]
[333965555,1722651039604,-505.08850696,0.00013698,2]
[333965557,1722651039614,-500.0,0.00013698,2]
[333965559,1722651039623,-500.90994871,0.00013698,2]
[333965561,1722651039632,-506.84656077,0.00013698,2]
[333965563,1722651039641,-500.0,0.00013698,2]
[333965565,1722651039650,-500.0,0.00013698,2]
[333965567,1722651039660,-500.0,0.00013698,2]
[333965569,1722651039671,-506.87715724,0.00013698,2]
[333965571,1722651039682,-500.0,0.00013698,2]
[333965573,1722651039692,-504.23835473,0.00013698,2]
[333965575,1722651039702,-506.63833376,0.00013698,2]
[333965577,1722651039712,-500.0,0.00013698,2]
[333965579,1722651039721,-994.27,0.00013698,2]
[333965581,1722651039730,-505.29415001,0.00013698,2]
[333965583,1722651039740,-500.0,0.00013698,2]
[333965585,1722651039750,-500.0,0.00013698,2]
[333965587,1722651039764,-500.0,0.00013698,2]
[333965589,1722651039774,-503.89055397,0.00013698,2]
[333965590,1722651039784,-500.0,0.00013698,2]
[333965591,1722651039794,-500.0,0.00013698,2]
[333965592,1722651039804,-500.0,0.00013698,2]
[333965593,1722651039814,-500.0,0.00013698,2]
[333965595,1722651039825,-522.03,0.00013698,2]
[333965598,1722651039837,-505.74744165,0.00013698,2]
[333965600,1722651039848,-505.78951109,0.00013698,2]
[333965602,1722651039859,-504.97509504,0.00013698,2]
[333965603,1722651039869,-501.74241784,0.00013698,2]
[333965605,1722651039879,-500.0,0.00013698,2]
[333965608,1722651039890,-505.61892652,0.00013698,2]
[333965610,1722651039900,-507.55790821,0.00013698,2]
[333965611,1722651039910,-511.52925491,0.00013698,2]
[333965613,1722651039920,-528.73249365,0.00013698,2]
[333965615,1722651039930,-502.28454646,0.00013698,2]
[333965618,1722651039940,-500.0,0.00013698,2]
[333965620,1722651039951,-506.99618902,0.00013698,2]
[333965633,1722651040054,-500.0,0.00013698,2]
[333965636,1722651040071,-506.02924038,0.00013698,2]
[333965638,1722651040082,-512.39417914,0.00013698,2]
[333965640,1722651040092,-505.41127315,0.00013698,2]
[333965643,1722651040110,-561.45531172,0.00013698,2]
[333965645,1722651040121,-502.35685984,0.00013698,2]
[333965647,1722651040131,-505.70538746,0.00013698,2]
[333965649,1722651040143,-500.0,0.00013698,2]
[333965651,1722651040153,-503.07616437,0.00013698,2]
[333965653,1722651040170,-500.0,0.00013698,2]
[333965655,1722651040180,-403.90250603,0.00013698,2]
[333965657,1722651040190,-504.80209952,0.00013698,2]
[333965659,1722651040199,-500.0,0.00013698,2]
[333965661,1722651040209,-515.51324362,0.00013698,2]
[333965663,1722651040218,-143.12404846,0.00013698,2]
[333965678,1722651040350,-339.72296225,0.00013698,2]
[333965680,1722651040361,-500.0,0.00013698,2]
[333965682,1722651040372,-500.0,0.00013698,2]
[333965685,1722651040383,-500.0,0.00013698,2]
[333965687,1722651040395,-500.0,0.00013698,2]
[333965689,1722651040406,-500.0,0.00013698,2]
[333965691,1722651040416,-503.37226235,0.00013698,2]
[333965693,1722651040427,-504.99106025,0.00013698,2]
[333965695,1722651040439,-500.0,0.00013698,2]
[333965697,1722651040450,-500.0,0.00013698,2]
[333965699,1722651040459,-501.89706402,0.00013698,2]
[333965701,1722651040469,-681.7,0.00013698,2]
[333965703,1722651040480,-503.77101078,0.00013698,2]
[333965705,1722651040489,-509.7765928,0.00013698,2]
[333965707,1722651040499,-505.49005405,0.00013698,2]
[333965710,1722651040509,-500.0,0.00013698,2]
[333965712,1722651040518,-563.76719079,0.00013698,2]
[333965714,1722651040528,-500.0,0.00013698,2]
[333965716,1722651040537,-504.56243058,0.00013698,2]
[333965718,1722651040546,-500.0,0.00013698,2]
[333965720,1722651040556,-506.11798183,0.00013698,2]
[333965722,1722651040566,-531.34524541,0.00013698,2]
[333965724,1722651040576,-500.0,0.00013698,2]
[333965726,1722651040586,-506.39464886,0.00013698,2]
[333965728,1722651040596,-520.61627528,0.00013698,2]
[333965730,1722651040605,-500.0,0.00013698,2]
[333965732,1722651040615,-500.0,0.00013698,2]
[333965734,1722651040625,-503.30205147,0.00013698,2]